bitfinex-derivatives/quotes_BTCF0:USTF0_20250620
["timestamp","ask_amount","ask_price","bid_price","bid_amount"]
[1750387372784,1.15723798,104640.0,104630.0,0.47993675]
[1750387372983,1.11711768,104640.0,104630.0,0.54553675]
[1750387375372,0.6746741,104640.0,104630.0,0.54553675]
[1750387375571,0.5149614,104640.0,104630.0,0.81166468]
[1750387375785,0.26317624,104640.0,104630.0,0.90633675]
[1750387375981,0.35837594,104640.0,104630.0,0.90633675]
[1750387376685,0.35837594,104640.0,104630.0,0.91587228]
[1750387376886,0.35837594,104640.0,104630.0,0.91687228]
[1750387377084,0.2151997,104640.0,104630.0,1.60934206]
[1750387377279,0.3340799,104650.0,104640.0,0.1911187]
[1750387377479,0.3540799,104650.0,104640.0,0.75547026]
[1750387377780,0.40212519,104650.0,104640.0,0.75547026]
[1750387378286,0.40212519,104650.0,104640.0,1.11627026]
[1750387379281,0.47816197,104650.0,104640.0,1.11627026]
[1750387380389,0.23928177,104650.0,104640.0,1.69887026]
[1750387381991,0.23928177,104650.0,104640.0,1.11627026]
[1750387383688,0.07077761,104650.0,104640.0,1.11627026]
[1750387383896,0.21414458,104650.0,104640.0,1.11627026]
[1750387385595,0.21414458,104650.0,104640.0,1.12044433]
[1750387385798,0.21414458,104650.0,104640.0,0.75964433]
[1750387386095,0.21414458,104650.0,104640.0,1.34216433]
[1750387391898,0.21414458,104650.0,104640.0,1.70296433]
[1750387392399,0.21414458,104650.0,104640.0,1.34216433]
[1750387393803,0.15336697,104650.0,104640.0,1.34216433]
[1750387397909,0.15336697,104650.0,104640.0,1.37326433]
[1750387403716,0.22940242,104650.0,104640.0,1.37326433]
[1750387405319,0.15336697,104650.0,104640.0,1.37326433]
[1750387405709,0.15336697,104650.0,104640.0,1.73406433]
[1750387405911,0.09504432,104660.0,104650.0,0.1910996]
[1750387406116,0.45584432,104670.0,104660.0,0.1910813]
[1750387406319,0.14504432,104670.0,104660.0,1.37371286]
[1750387406616,0.28851473,104670.0,104660.0,1.37371286]
[1750387407414,0.28851473,104670.0,104660.0,1.37571286]
[1750387407721,0.47957773,104670.0,104660.0,1.37571286]
[1750387407921,0.28851473,104670.0,104660.0,1.37671286]
[1750387408122,0.47957773,104670.0,104660.0,1.37671286]
[1750387408316,0.28851473,104670.0,104660.0,1.37671286]
[1750387408818,0.48938609,104670.0,104660.0,1.37671286]
[1750387409018,0.29832299,104670.0,104660.0,1.37671286]
[1750387409626,0.48938599,104670.0,104660.0,1.37671286]
[1750387409813,1.10151177,104670.0,104660.0,0.44540708]
[1750387410020,1.17531177,104670.0,104660.0,1.02764708]
[1750387410322,0.73292299,104670.0,104660.0,1.02764708]
[1750387410524,0.98424877,104670.0,104660.0,1.02764708]
[1750387410717,1.17531177,104670.0,104660.0,1.02764708]
[1750387411123,0.98424877,104670.0,104660.0,1.02764708]
[1750387413428,0.98424877,104670.0,104660.0,0.44540708]
[1750387413726,1.17531177,104670.0,104660.0,1.02760708]
[1750387415921,1.17531177,104670.0,104660.0,1.03178115]
[1750387416428,0.81451177,104670.0,104660.0,1.03178115]
[1750387416629,1.17531177,104670.0,104660.0,1.03178115]
[1750387417631,1.17531177,104670.0,104660.0,1.03170115]
[1750387418333,1.20681177,104670.0,104660.0,1.03170115]
[1750387421734,1.11176745,104670.0,104660.0,1.03170115]
[1750387422224,0.87402166,104670.0,104660.0,1.03170115]
[1750387422424,1.12534744,104670.0,104660.0,1.12540115]
[1750387423839,1.04926845,104670.0,104660.0,1.12540115]
[1750387424043,0.85820445,104670.0,104660.0,1.12540115]
[1750387424833,0.82540445,104670.0,104660.0,1.37672693]
[1750387425038,0.57407867,104670.0,104660.0,1.37672693]
[1750387425743,0.56407867,104670.0,104660.0,1.37672693]
[1750387425941,0.64016274,104670.0,104660.0,1.37672693]
[1750387428140,1.00646835,104670.0,104660.0,1.37672693]
[1750387429140,0.81540445,104670.0,104660.0,1.37672693]
[1750387429541,1.00646845,104670.0,104660.0,1.37672693]
[1750387432344,0.81540445,104670.0,104660.0,1.37672693]
[1750387432537,0.56407867,104670.0,104660.0,1.37672693]
[1750387433845,0.27940889,104670.0,104660.0,1.37672693]
[1750387434146,0.64020889,104670.0,104660.0,1.37672693]
[1750387437446,0.56407867,104670.0,104660.0,1.37672693]
[1750387437651,0.65912299,104670.0,104660.0,1.37672693]
[1750387438750,0.85018699,104670.0,104660.0,1.37672693]
[1750387441054,0.48938699,104670.0,104660.0,1.37672693]
[1750387441262,0.85018699,104670.0,104660.0,1.37672693]
[1750387441758,0.65912299,104670.0,104660.0,1.37672693]
[1750387442454,0.56407867,104670.0,104660.0,1.37672693]
[1750387444353,0.41001936,104670.0,104660.0,1.37672693]
[1750387444550,0.54001936,104670.0,104660.0,1.37672693]
[1750387446855,0.54001936,104670.0,104660.0,0.87407537]
[1750387447159,0.54001936,104670.0,104660.0,1.37672693]
[1750387449758,0.17921936,104670.0,104660.0,1.37672693]
[1750387450161,0.54001936,104670.0,104660.0,1.37672693]
[1750387450355,0.17921936,104670.0,104660.0,1.37672693]
[1750387450859,0.37028336,104670.0,104660.0,1.37672693]
[1750387451058,0.73108336,104670.0,104660.0,1.37672693]
[1750387451260,0.37028336,104670.0,104660.0,1.37672693]
[1750387451563,0.73108336,104670.0,104660.0,1.37672693]
[1750387451964,0.98240914,104670.0,104660.0,1.03170115]
[1750387452155,0.82578336,104670.0,104660.0,0.44998115]
[1750387452461,1.17215346,104670.0,104660.0,1.03170115]
[1750387453863,0.98108946,104670.0,104660.0,1.06280115]
[1750387454066,0.88604514,104670.0,104660.0,1.06280115]
[1750387454365,0.88604514,104670.0,104660.0,1.37882693]
[1750387456368,1.07710914,104670.0,104660.0,1.37882693]
[1750387458067,1.17215346,104670.0,104660.0,1.37882693]
[1750387458468,0.92082768,104670.0,104660.0,1.37882693]
[1750387459572,0.72976368,104670.0,104660.0,1.37882693]
[1750387460268,0.92082768,104670.0,104660.0,1.37882693]
[1750387460765,0.72976368,104670.0,104660.0,1.37882693]
[1750387460970,0.66756368,104670.0,104660.0,1.37882693]
[1750387461572,0.30676368,104670.0,104660.0,1.37882693]
[1750387464572,0.85862778,104670.0,104660.0,1.37882693]
[1750387471081,0.66756368,104670.0,104660.0,1.37882693]
[1750387472073,0.85862778,104670.0,104660.0,0.87617537]
[1750387472280,1.10995356,104670.0,104660.0,0.00757407]
[1750387472480,1.17275356,104670.0,104660.0,1.03146215]
[1750387472679,1.17275356,104670.0,104660.0,1.03106215]
[1750387472873,1.17275356,104670.0,104660.0,1.03146215]
[1750387473977,1.07770924,104670.0,104660.0,1.03146215]
[1750387474676,1.07770924,104670.0,104660.0,1.06206215]
[1750387474877,1.07770924,104670.0,104660.0,1.09426215]
[1750387475181,1.07770924,104670.0,104660.0,1.34558793]
[1750387475382,1.07770924,104670.0,104660.0,1.12586215]
[1750387475680,1.07770924,104670.0,104660.0,1.37718793]
[1750387476081,1.17275356,104670.0,104660.0,1.37718793]
[1750387476380,0.49782778,104670.0,104660.0,1.37718793]
[1750387477080,0.27426368,104670.0,104660.0,1.37718793]
[1750387477280,0.46532778,104670.0,104660.0,1.37718793]
[1750387477581,0.82612778,104670.0,104660.0,1.37718793]
[1750387479386,0.46532778,104670.0,104660.0,1.37718793]
[1750387480882,0.82612778,104670.0,104660.0,1.37718793]
[1750387481086,0.46532778,104670.0,104660.0,1.37718793]
[1750387481288,0.27426368,104670.0,104660.0,0.87453637]
[1750387481489,0.46532778,104670.0,104660.0,1.37718793]
[1750387484890,0.27426368,104670.0,104660.0,1.37718793]
[1750387485092,0.46532778,104670.0,104660.0,1.37718793]
[1750387485288,0.82612778,104670.0,104660.0,1.37718793]
[1750387486689,0.82612778,104670.0,104660.0,0.29305637]
[1750387486886,1.07745356,104670.0,104660.0,1.37702793]
[1750387487590,0.82612778,104670.0,104660.0,1.37702793]
[1750387488287,0.82612778,104670.0,104660.0,0.54438215]
[1750387488492,0.82612778,104670.0,104660.0,1.12570215]
[1750387488493,1.07745356,104670.0,104660.0,1.12570215]
[1750387489594,0.82612778,104670.0,104660.0,1.12570215]
[1750387489804,1.07745356,104670.0,104660.0,1.37702793]
[1750387491106,0.88638946,104670.0,104660.0,1.37702793]
[1750387491606,0.63506368,104670.0,104660.0,1.37702793]
[1750387492712,0.82612778,104670.0,104660.0,1.37702793]
[1750387493511,0.63506368,104670.0,104660.0,1.37702793]
[1750387493910,0.82612768,104670.0,104660.0,1.37702793]
[1750387494803,0.46532768,104670.0,104660.0,1.37702793]
[1750387495303,0.82612768,104670.0,104660.0,1.37702793]
[1750387495608,0.46532768,104670.0,104660.0,1.37702793]
[1750387496505,0.82612768,104670.0,104660.0,1.37702793]
[1750387501712,0.73108336,104670.0,104660.0,1.37702793]
[1750387504512,0.73108346,104670.0,104660.0,1.37702793]
[1750387506715,0.54001936,104670.0,104660.0,1.37702793]
[1750387507916,0.73108346,104670.0,104660.0,1.37702793]
[1750387508214,0.5302111,104670.0,104660.0,1.37702793]
[1750387508415,0.1694111,104670.0,104660.0,1.37702793]
[1750387513816,0.1694111,104670.0,104660.0,1.67172793]
[1750387514018,0.26445542,104670.0,104660.0,1.67172793]
[1750387514217,0.45551942,104670.0,104660.0,1.16907637]
[1750387514418,0.45551942,104670.0,104660.0,1.67172793]
[1750387514819,0.26445542,104670.0,104660.0,1.67172793]
[1750387516120,0.45551952,104670.0,104660.0,1.09040793]
[1750387516420,0.62525542,104670.0,104660.0,1.67144793]
[1750387516619,0.62525542,104670.0,104660.0,1.67104793]
[1750387516822,0.62525542,104670.0,104660.0,1.67144793]
[1750387517420,0.81631952,104670.0,104660.0,0.58775637]
[1750387517612,1.1317453,104670.0,104660.0,0.49295637]
[1750387517817,1.1629453,104670.0,104660.0,1.32568215]
[1750387518017,1.1629453,104670.0,104660.0,1.32528215]
[1750387518319,1.1629453,104670.0,104660.0,1.32568215]
[1750387519623,1.1629453,104670.0,104660.0,1.07435637]
[1750387519922,1.1629453,104670.0,104660.0,1.03098215]
[1750387520123,1.1629453,104670.0,104660.0,0.44998215]
[1750387520320,1.2029453,104670.0,104660.0,0.00757407]
[1750387520524,1.19790098,104670.0,104660.0,0.00717407]
[1750387520822,1.33096303,104670.0,104660.0,0.00757407]
[1750387521722,1.33196303,104670.0,104660.0,0.00657407]
[1750387522222,1.46644303,104670.0,104660.0,0.00657407]
[1750387522823,1.46844303,104670.0,104660.0,0.00457407]
[1750387523922,1.56355412,104670.0,104660.0,0.00457407]
[1750387524324,1.43049207,104670.0,104660.0,0.00457407]
[1750387527124,2.01145207,104670.0,104660.0,0.00457407]
[1750387531019,0.1910823,104660.0,104650.0,0.0008]
[1750387531324,1.48053386,104660.0,104650.0,0.0008]
[1750387531522,1.27264601,104660.0,104650.0,0.44322628]
[1750387532117,1.27264601,104660.0,104650.0,0.25132578]
[1750387532322,0.1911005,104650.0,104640.0,0.68066568]
[1750387532518,0.77692053,104650.0,104640.0,0.93199146]
[1750387532717,0.92032788,104650.0,104640.0,0.93199146]
[1750387533123,1.07663363,104650.0,104640.0,0.93199146]
[1750387533417,1.07663363,104650.0,104640.0,0.4293399]
[1750387533625,1.07663363,104650.0,104640.0,0.93399146]
[1750387533823,0.82530785,104650.0,104640.0,0.93399146]
[1750387534020,1.07663363,104650.0,104640.0,0.93399146]
[1750387534813,1.07663363,104650.0,104640.0,0.4313399]
[1750387535019,1.07663363,104650.0,104640.0,0.68266568]
[1750387535318,1.07663363,104650.0,104640.0,0.68066568]
[1750387536623,1.07663363,104650.0,104640.0,0.3815607]
[1750387537129,1.15258938,104650.0,104640.0,0.88421226]
[1750387538731,1.15258938,104650.0,104640.0,0.3815607]
[1750387538930,1.15258938,104650.0,104640.0,0.88421226]
[1750387541434,0.95797479,104650.0,104640.0,0.88421226]
[1750387541731,1.14907529,104650.0,104640.0,0.88421226]
[1750387542336,0.70664901,104650.0,104640.0,0.88421226]
[1750387542528,0.89774911,104650.0,104640.0,0.88421226]
[1750387542730,0.89774911,104650.0,104640.0,0.3815607]
[1750387542930,0.89774911,104650.0,104640.0,0.88421226]
[1750387543530,0.70664901,104650.0,104640.0,0.88421226]
[1750387544637,0.89774911,104650.0,104640.0,0.88421226]
[1750387546339,0.53694911,104650.0,104640.0,0.88421226]
[1750387548334,0.34584901,104650.0,104640.0,0.88421226]
[1750387549941,0.53694901,104650.0,104640.0,0.88838633]
[1750387550141,0.07595575,104650.0,104640.0,1.13971211]
[1750387550342,0.07595575,104650.0,104640.0,0.88838633]
[1750387551842,0.07595575,104650.0,104640.0,0.89038633]
[1750387552244,0.07595575,104650.0,104640.0,1.18608633]
[1750387556147,0.07595575,104650.0,104640.0,1.32044633]
[1750387560350,0.74246233,104660.0,104650.0,0.1911001]
[1750387560553,0.74246233,104660.0,104650.0,1.11984588]
[1750387560554,0.87246233,104660.0,104650.0,1.11984588]
[1750387560756,1.01620419,104660.0,104650.0,1.11984588]
[1750387562056,0.92065969,104660.0,104650.0,1.11984588]
[1750387562257,0.82563966,104660.0,104650.0,1.11984588]
[1750387562457,0.92065969,104660.0,104650.0,1.11984588]
[1750387563061,0.36876189,104660.0,104650.0,1.11984588]
[1750387564065,0.27374186,104660.0,104650.0,1.11984588]
[1750387565861,0.3497951,104660.0,104650.0,1.11984588]
[1750387566249,0.3497951,104660.0,104650.0,1.12401995]
[1750387566455,0.5408769,104660.0,104650.0,1.12401995]
[1750387566862,0.3497951,104660.0,104650.0,1.12401995]
[1750387567659,0.20605324,104660.0,104650.0,1.73614573]
[1750387568059,0.13,104660.0,104650.0,1.73614573]
[1750387568762,0.13,104660.0,104650.0,1.73914573]
[1750387569266,0.13,104660.0,104650.0,1.74314573]
[1750387569966,0.13,104660.0,104650.0,2.03784573]
[1750387574071,0.07605324,104670.0,104660.0,0.1910818]
[1750387574261,0.08605324,104670.0,104660.0,1.14933336]
[1750387575364,0.08605324,104670.0,104660.0,1.15233336]
[1750387575968,0.08605324,104670.0,104660.0,1.45674793]
[1750387577870,0.01,104670.0,104660.0,1.45674793]
[1750387578571,0.08605324,104670.0,104660.0,1.70807371]
[1750387578881,0.01,104670.0,104660.0,1.70807371]
[1750387579086,1e-07,104670.0,104660.0,1.84235371]
[1750387580480,1e-07,104670.0,104660.0,1.84652778]
[1750387580883,1e-07,104670.0,104660.0,1.34367491]
[1750387581282,0.07645324,104680.0,104670.0,0.1910636]
[1750387581484,0.10645324,104680.0,104670.0,2.03323254]
[1750387581693,0.10605324,104680.0,104670.0,2.03323254]
[1750387581888,0.10645324,104680.0,104670.0,2.03323254]
[1750387582880,0.10645324,104680.0,104670.0,1.5309836]
[1750387583080,0.10645324,104680.0,104670.0,2.03323254]
[1750387587391,0.10645324,104680.0,104670.0,1.5309836]
[1750387587590,0.10645324,104680.0,104670.0,2.03323254]
[1750387587891,0.0304,104680.0,104670.0,2.03323254]
[1750387593593,0.0304,104680.0,104670.0,1.5309836]
[1750387593794,0.0304,104680.0,104670.0,2.03323254]
[1750387593989,0.10645324,104680.0,104670.0,2.03323254]
[1750387595592,0.10645324,104680.0,104670.0,2.03740661]
[1750387597795,0.07645324,104680.0,104670.0,2.03740661]
[1750387598184,0.07605324,104680.0,104670.0,2.03740661]
[1750387598389,0.07645324,104680.0,104670.0,2.03740661]
[1750387599692,0.00827308,104690.0,104680.0,0.1910453]
[1750387599884,0.14827308,104690.0,104680.0,0.86776977]
[1750387600899,0.15766574,104690.0,104680.0,0.86776977]
[1750387601098,0.15966574,104690.0,104680.0,0.86776977]
[1750387601999,0.23800463,104690.0,104680.0,0.86776977]
[1750387602591,0.23800463,104690.0,104680.0,1.16246977]
[1750387602893,0.23800463,104690.0,104680.0,0.5816453]
[1750387603102,0.42903173,104690.0,104680.0,1.08379436]
[1750387603396,0.49023173,104690.0,104680.0,1.64109436]
[1750387603599,0.26083155,104690.0,104680.0,1.64109436]
[1750387606094,0.29363155,104690.0,104680.0,1.64109436]
[1750387608503,0.23053155,104690.0,104680.0,1.1389453]
[1750387608706,0.26153155,104690.0,104680.0,1.64109436]
[1750387609604,0.33763156,104690.0,104680.0,1.64109436]
[1750387609804,0.33763156,104690.0,104680.0,1.67349436]
[1750387610604,0.52865866,104690.0,104680.0,1.67349436]
[1750387610900,0.88945866,104690.0,104680.0,0.99206843]
[1750387611105,0.88945866,104690.0,104680.0,1.3291139]
[1750387611106,1.12753318,104690.0,104680.0,1.3291139]
[1750387611300,1.26991475,104690.0,104680.0,1.3291139]
[1750387611695,1.26991475,104690.0,104680.0,1.3287139]
[1750387612000,1.26991475,104690.0,104680.0,1.3291139]
[1750387612200,1.26991475,104690.0,104680.0,0.7413939]
[1750387612399,1.36493478,104690.0,104680.0,1.3290739]
[1750387613493,1.11386025,104690.0,104680.0,1.3290739]
[1750387613696,1.26991475,104690.0,104680.0,1.3290739]
[1750387614095,1.34602745,104690.0,104680.0,1.3290739]
[1750387614290,1.34602745,104690.0,104680.0,1.0343739]
[1750387614803,1.43602745,104690.0,104680.0,0.00457407]
[1750387615103,2.28001478,104690.0,104680.0,0.00417407]
[1750387615311,2.02894025,104690.0,104680.0,0.00457407]
[1750387615606,2.18499475,104690.0,104680.0,0.00417407]
[1750387615905,2.18499475,104690.0,104680.0,0.00457407]
[1750387616104,2.18499475,104690.0,104680.0,0.00417407]
[1750387616408,2.28008179,104690.0,104680.0,0.00457407]
[1750387616904,2.62617689,104690.0,104680.0,0.00457407]
[1750387617200,0.1910636,104670.0,104660.0,0.2866052]
[1750387617399,0.86792915,104670.0,104660.0,0.2874052]
[1750387617601,1.11064561,104670.0,104660.0,0.2866052]
[1750387618100,1.11064561,104670.0,104660.0,0.30060503]
[1750387618805,1.11064561,104670.0,104660.0,0.30160503]
[1750387619800,1.11064561,104670.0,104660.0,0.30360503]
[1750387620198,1.11064561,104670.0,104660.0,0.25583523]
[1750387620913,1.11064561,104670.0,104660.0,0.25383523]
[1750387621712,1.11064561,104670.0,104660.0,0.25283523]
[1750387623309,1.11064561,104670.0,104660.0,0.5040439]
[1750387625011,1.11064561,104670.0,104660.0,0.50821797]
[1750387629915,2.63738228,104670.0,104660.0,0.0181739]
[1750387630214,2.44629428,104670.0,104660.0,0.0185739]
[1750387630406,2.44614471,104670.0,104660.0,0.0185739]
[1750387631207,2.8125254,104670.0,104660.0,0.0185739]
[1750387631414,2.8125254,104670.0,104630.0,0.0009557]
[1750387631415,2.9714618,104670.0,104630.0,0.0009557]
[1750387631610,0.1911366,104630.0,104620.0,0.0962]
[1750387631914,0.9093766,104630.0,104620.0,0.2543549]
[1750387632106,1.1283259,104630.0,104620.0,0.2543549]
[1750387632319,1.1608259,104630.0,104620.0,0.2547549]
[1750387632612,1.08496047,104630.0,104620.0,0.2547549]
[1750387632814,1.09455324,104630.0,104620.0,0.2547549]
[1750387633016,1.09455324,104630.0,104620.0,0.2557549]
[1750387633714,1.09455324,104630.0,104620.0,0.50896357]
[1750387633916,1.17211368,104630.0,104620.0,0.50896357]
[1750387634409,1.09455324,104630.0,104620.0,0.50896357]
[1750387635517,1.15130971,104630.0,104620.0,0.2577549]
[1750387635816,1.09455324,104630.0,104620.0,0.2577549]
[1750387636412,1.1512932,104630.0,104620.0,0.2577549]
[1750387637214,1.1512932,104630.0,104620.0,0.0666]
[1750387637412,1.1512932,104630.0,104620.0,0.2577549]
[1750387637612,1.1512932,104630.0,104620.0,0.2573549]
[1750387637811,1.1512932,104630.0,104620.0,0.2577549]
[1750387639220,1.22793863,104630.0,104620.0,0.2577549]
[1750387640321,1.22793863,104630.0,104620.0,0.26192897]
[1750387641321,1.4791473,104630.0,104620.0,0.03877407]
[1750387641520,1.4791473,104630.0,104620.0,0.19872787]
[1750387641521,1.5116473,104630.0,104620.0,0.19872787]
[1750387642524,1.26043863,104630.0,104620.0,0.23082787]
[1750387643323,1.26043863,104630.0,104620.0,0.26332787]
[1750387644322,1.26043863,104630.0,104620.0,0.51453654]
[1750387645020,1.26043863,104630.0,104620.0,0.44993654]
[1750387645214,1.26043863,104630.0,104620.0,0.19872787]
[1750387646424,1.26043863,104630.0,104620.0,0.23172787]
[1750387646613,1.26043863,104630.0,104620.0,0.26202787]
[1750387647517,1.22793863,104630.0,104620.0,0.51323654]
[1750387648927,1.22793863,104630.0,104620.0,0.26202787]
[1750387651428,1.22793863,104630.0,104620.0,0.23172787]
[1750387651627,1.25913863,104630.0,104620.0,0.23172787]
[1750387653824,1.5103473,104630.0,104620.0,0.23172787]
[1750387654027,1.52947277,104630.0,104620.0,0.23172787]
[1750387654929,1.2782641,104630.0,104620.0,0.23172787]
[1750387655120,1.2782641,104630.0,104620.0,0.26402787]
[1750387655925,1.2470641,104630.0,104620.0,0.26402787]
[1750387656225,1.0771241,104630.0,104620.0,0.51523654]
[1750387656428,1.2134041,104630.0,104620.0,0.51523654]
[1750387659833,1.2134041,104630.0,104620.0,0.26402787]
[1750387660036,1.2134041,104630.0,104620.0,0.51523654]
[1750387660335,1.2134041,104630.0,104620.0,0.5301812]
[1750387660536,1.13753867,104630.0,104620.0,0.5301812]
[1750387662531,0.77673867,104630.0,104620.0,0.51523654]
[1750387662935,0.77673867,104630.0,104620.0,0.53018116]
[1750387663239,0.77673867,104630.0,104620.0,0.51523654]
[1750387664238,0.85282467,104630.0,104620.0,0.51523654]
[1750387665332,0.77673867,104630.0,104620.0,0.51523654]
[1750387667031,0.29272442,104630.0,104620.0,1.46015654]
[1750387667238,0.21607899,104630.0,104620.0,1.76980025]
[1750387667435,0.26719659,104640.0,104630.0,0.1911359]
[1750387667627,0.08607899,104640.0,104630.0,0.50594457]
[1750387668435,0.08607899,104640.0,104630.0,0.86674457]
[1750387669441,0.43687899,104650.0,104640.0,0.1911175]
[1750387669640,0.47687899,104650.0,104640.0,1.34177484]
[1750387670342,0.04,104650.0,104640.0,1.70257484]
[1750387670745,0.041,104650.0,104640.0,1.70257484]
[1750387671645,0.0979538,104650.0,104640.0,1.70257484]
[1750387671941,0.0999538,104650.0,104640.0,1.70257484]
[1750387672741,0.0999538,104650.0,104640.0,1.11793484]
[1750387673047,0.0999538,104650.0,104640.0,1.09056617]
[1750387673239,0.2910531,104650.0,104640.0,1.09056617]
[1750387673432,0.0999538,104650.0,104640.0,1.38526617]
[1750387673946,0.2910531,104650.0,104640.0,1.38526617]
[1750387674139,0.2340993,104650.0,104640.0,1.38526617]
[1750387678040,0.043,104650.0,104640.0,1.38526617]
[1750387678542,0.09988078,104650.0,104640.0,1.38526617]
[1750387679751,0.09988078,104650.0,104640.0,1.74606617]
[1750387680840,0.09988078,104650.0,104640.0,1.77816617]
[1750387681441,0.29098018,104650.0,104640.0,1.41736617]
[1750387681643,0.09987647,104650.0,104640.0,1.77816617]
[1750387684352,0.09987647,104650.0,104640.0,1.41736617]
[1750387684954,0.09987647,104650.0,104640.0,1.77816617]
[1750387685954,0.09987647,104650.0,104640.0,1.78234024]
[1750387688854,0.09987647,104650.0,104640.0,1.42154024]
[1750387689151,0.09987647,104650.0,104640.0,1.78234024]
[1750387689556,0.09987647,104650.0,104640.0,1.42154024]
[1750387690355,0.29097587,104650.0,104640.0,1.42154024]
[1750387690950,0.09987647,104650.0,104640.0,1.42154024]
[1750387691554,0.043,104650.0,104640.0,1.42154024]
[1750387691742,0.043,104650.0,104640.0,1.67274891]
[1750387692341,0.043,104650.0,104640.0,2.03354891]
[1750387694057,0.11907899,104650.0,104640.0,2.03354891]
[1750387696659,0.11907899,104650.0,104640.0,1.78234024]
[1750387698658,0.11907899,104650.0,104640.0,1.53113157]
[1750387698848,0.11907899,104650.0,104640.0,1.78234024]
[1750387699656,0.043,104650.0,104640.0,1.78234024]
[1750387700052,0.11916979,104650.0,104640.0,1.78234024]
[1750387700964,0.11916979,104650.0,104640.0,2.03365687]
[1750387701456,0.043,104650.0,104640.0,2.03365687]
[1750387701662,0.11917144,104650.0,104640.0,2.03365687]
[1750387702564,0.11917144,104650.0,104640.0,2.03261687]
[1750387704764,0.11917144,104650.0,104640.0,1.67181687]
[1750387705763,0.31027084,104650.0,104640.0,1.67181687]
[1750387706064,0.11917144,104650.0,104640.0,1.67181687]
[1750387708964,0.31027094,104650.0,104640.0,1.67181687]
[1750387711070,0.11917144,104650.0,104640.0,1.67181687]
[1750387711567,0.31027094,104650.0,104640.0,1.67181687]
[1750387712369,0.11917144,104650.0,104640.0,1.67181687]
[1750387713167,1.11158249,104660.0,104650.0,0.1910995]
[1750387713367,1.27158249,104660.0,104650.0,0.47306215]
[1750387713569,1.41486984,104660.0,104650.0,0.47306215]
[1750387715169,1.41786984,104660.0,104650.0,0.47306215]
[1750387715468,1.41986984,104660.0,104650.0,0.47306215]
[1750387717169,1.42949492,104660.0,104650.0,0.47306215]
[1750387723664,1.42949492,104660.0,104650.0,0.50416215]
[1750387725273,1.42949492,104660.0,104650.0,0.2528995]
[1750387725466,1.42949492,104660.0,104650.0,0.50416215]
[1750387729377,1.29622662,104660.0,104650.0,0.50416215]
[1750387729680,1.26392662,104660.0,104650.0,0.53686215]
[1750387730177,1.01266397,104660.0,104650.0,0.53686215]
[1750387730370,1.26392662,104660.0,104650.0,0.53686215]
[1750387730571,1.26392662,104660.0,104650.0,0.54103622]
[1750387731482,0.77379437,104660.0,104650.0,0.54103622]
[1750387731685,0.96487557,104660.0,104650.0,0.54103622]
[1750387731979,0.95525049,104660.0,104650.0,0.54103622]
[1750387734280,0.95325049,104660.0,104650.0,0.54103622]
[1750387735480,0.95025049,104660.0,104650.0,0.54103622]
[1750387735683,0.95025049,104660.0,104650.0,0.54203622]
[1750387737981,0.75916929,104660.0,104650.0,0.54203622]
[1750387738183,0.59588194,104660.0,104650.0,0.54203622]
[1750387740383,0.78696314,104660.0,104650.0,0.54203622]
[1750387741185,0.43100927,104660.0,104650.0,0.54203622]
[1750387741885,0.43100927,104660.0,104650.0,1.12463622]
[1750387743682,0.43100927,104660.0,104650.0,0.54203622]
[1750387743885,0.94947425,104660.0,104650.0,0.87333357]
[1750387744085,0.94947425,104660.0,104650.0,1.12459622]
[1750387744390,0.7620116,104660.0,104650.0,1.12459622]
[1750387744581,1.01327425,104660.0,104650.0,1.12459622]
[1750387745487,1.01327425,104660.0,104650.0,0.54203622]
[1750387745679,1.01327425,104660.0,104650.0,1.12459622]
[1750387746189,1.04327425,104660.0,104650.0,1.12459622]
[1750387748186,0.7920116,104660.0,104650.0,1.12459622]
[1750387748386,1.01327425,104660.0,104650.0,1.2001099]
[1750387750392,0.5071304,104660.0,104650.0,1.2001099]
[1750387750890,0.43100927,104660.0,104650.0,1.2001099]
[1750387751079,0.52615794,104660.0,104650.0,1.2001099]
[1750387753094,0.52615794,104660.0,104650.0,0.94884725]
[1750387753391,0.52615794,104660.0,104650.0,1.2001099]
[1750387754093,0.43100927,104660.0,104650.0,1.2001099]
[1750387756794,0.07020927,104660.0,104650.0,1.45137255]
[1750387756999,0.14633888,104660.0,104650.0,1.2001099]
[1750387758800,0.07020927,104660.0,104650.0,1.2001099]
[1750387759199,0.14634114,104660.0,104650.0,1.2001099]
[1750387760304,0.07020927,104660.0,104650.0,1.2001099]
[1750387761307,0.87335312,104660.0,104650.0,0.5848499]
[1750387761602,0.93715312,104660.0,104650.0,1.1673699]
[1750387762604,0.57635312,104660.0,104650.0,1.1673699]
[1750387762804,0.93715312,104660.0,104650.0,1.1673699]
[1750387763801,0.74607192,104660.0,104650.0,1.1673699]
[1750387765405,0.51480927,104660.0,104650.0,1.1673699]
[1750387765603,0.76607192,104660.0,104650.0,1.1673699]
[1750387767307,0.95715282,104660.0,104650.0,1.1673699]
[1750387768711,0.76607192,104660.0,104650.0,1.1673699]
[1750387768900,0.95715282,104660.0,104650.0,1.1673699]
[1750387770513,0.70589017,104660.0,104650.0,1.1673699]
[1750387770706,0.93715282,104660.0,104650.0,0.91610725]
[1750387771111,0.98715282,104660.0,104650.0,1.1673699]
[1750387771304,0.73589017,104660.0,104650.0,1.1673699]
[1750387771612,0.98715282,104660.0,104650.0,1.1673699]
[1750387772810,0.98715282,104660.0,104650.0,1.1983699]
[1750387780610,1.08230149,104660.0,104650.0,1.1983699]
[1750387782617,1.08230149,104660.0,104650.0,1.12285622]
[1750387785810,1.05120149,104660.0,104650.0,1.12285622]
[1750387787309,0.69040149,104660.0,104650.0,1.12285622]
[1750387788005,1.05120149,104660.0,104650.0,1.12285622]
[1750387788618,0.57615794,104660.0,104650.0,1.12285622]
[1750387789717,0.21535794,104660.0,104650.0,1.48365622]
[1750387789928,0.16535794,104660.0,104650.0,1.73491887]
[1750387791218,0.07020927,104660.0,104650.0,1.73491887]
[1750387794212,0.14635463,104660.0,104650.0,1.73491887]
[1750387797623,0.07513672,104680.0,104670.0,0.1910628]
[1750387797824,0.001,104690.0,104670.0,1.85362409]
[1750387798025,0.001,104690.0,104680.0,1.1510698]
[1750387798225,0.001,104690.0,104680.0,1.2862298]
[1750387799028,0.0014,104690.0,104680.0,1.2862298]
[1750387799830,0.0014,104690.0,104680.0,1.2872298]
[1750387801228,0.0014,104690.0,104680.0,1.53849245]
[1750387802031,0.0014,104690.0,104680.0,1.2872298]
[1750387803228,0.0014,104690.0,104680.0,1.5819298]
[1750387803833,0.0014,104690.0,104680.0,1.83319245]
[1750387804227,0.001,104690.0,104680.0,1.83319245]
[1750387805027,0.0014,104690.0,104680.0,1.5819298]
[1750387805429,0.0014,104690.0,104680.0,1.83319245]
[1750387805627,0.0014,104690.0,104680.0,1.83736652]
[1750387807536,0.0014,104690.0,104680.0,1.58610387]
[1750387811941,0.0014,104690.0,104680.0,1.60321374]
[1750387816443,0.0014,104690.0,104680.0,1.63478607]
[1750387819843,1e-07,104690.0,104680.0,1.88604872]
[1750387820046,0.10699359,104710.0,104680.0,1.93380612]
[1750387820344,0.062,104710.0,104700.0,1.0543333]